[Event "Titled Tuesday Blitz June 13 Early 2023"]
[White "Swiercz, Dariusz"]
[Black "Jaracz, Pawel"]
[WhiteFideId "1126881"]
[BlackFideId "1102222"]
[WhiteElo "2620"]
[BlackElo "2454"]
[Result "1-0"]
[Round "3"]
[TimeControl "180+2"]
[Date "2023.06.13"]
[WhiteClock "0:01:16"]
[BlackClock "0:01:15"]
[Board "26"]

1. e4 {[%clk 0:03:00]}  d6 {[%clk 0:02:58]} 2. Nf3 {[%clk 0:03:00]}  Nf6 {[%clk 0:02:58]} 3. Nc3 {[%clk 0:03:00]}  e5 {[%clk 0:02:57]} 4. d4 {[%clk 0:03:00]}  Nbd7 {[%clk 0:02:57]} 5. Bc4 {[%clk 0:03:00]}  Be7 {[%clk 0:02:58]} 6. a4 {[%clk 0:03:00]}  O-O {[%clk 0:02:57]} 7. O-O {[%clk 0:03:00]}  a6 {[%clk 0:02:56]} 8. a5 {[%clk 0:02:59]}  exd4 {[%clk 0:02:56]} 9. Qxd4 {[%clk 0:02:58]}  Nc5 {[%clk 0:02:54]} 10. h3 {[%clk 0:02:55]}  Be6 {[%clk 0:02:53]} 11. Re1 {[%clk 0:02:51]}  c6 {[%clk 0:02:48]} 12. Bf4 {[%clk 0:02:34]}  Bxc4 {[%clk 0:02:41]} 13. Qxc4 {[%clk 0:02:35]}  Ne6 {[%clk 0:02:37]} 14. Bg3 {[%clk 0:02:29]}  b5 {[%clk 0:02:37]} 15. axb6 {[%clk 0:02:27]}  Qxb6 {[%clk 0:02:37]} 16. b3 {[%clk 0:02:19]}  Rfc8 {[%clk 0:02:36]} 17. Rad1 {[%clk 0:02:13]}  d5 {[%clk 0:02:34]} 18. exd5 {[%clk 0:02:06]}  cxd5 {[%clk 0:02:34]} 19. Nxd5 {[%clk 0:02:06]}  Nxd5 {[%clk 0:02:33]} 20. Qxd5 {[%clk 0:02:07]}  a5 {[%clk 0:02:13]} 21. Ne5 {[%clk 0:01:56]}  a4 {[%clk 0:01:54]} 22. Nxf7 {[%clk 0:01:36]}  Kxf7 {[%clk 0:01:53]} 23. Qf5+ {[%clk 0:01:36]}  Bf6 {[%clk 0:01:51]} 24. Rd7+ {[%clk 0:01:36]}  Kg8 {[%clk 0:01:50]} 25. Rxe6 {[%clk 0:01:36]}  Rc6 {[%clk 0:01:15]} 26. Qd5 {[%clk 0:01:16]} 1-0


[Site "https://www.chess.com"]

[Event "Titled Tuesday Blitz June 13 Early 2023"]
[White "Babazada, Khazar"]
[Black "Timerkhanov, Alexander"]
[WhiteFideId "13413554"]
[BlackFideId "24177938"]
[WhiteElo "2369"]
[BlackElo "2278"]
[Result "1-0"]
[Round "3"]
[TimeControl "180+2"]
[Date "2023.06.13"]
[WhiteClock "0:00:20"]
[BlackClock "0:00:05"]
[Board "28"]

1. Nf3 {[%clk 0:03:00]}  d5 {[%clk 0:02:58]} 2. g3 {[%clk 0:03:01]}  Bg4 {[%clk 0:02:56]} 3. Bg2 {[%clk 0:03:01]}  Nd7 {[%clk 0:02:57]} 4. d4 {[%clk 0:03:01]}  e6 {[%clk 0:02:55]} 5. O-O {[%clk 0:03:01]}  Ngf6 {[%clk 0:02:55]} 6. Nbd2 {[%clk 0:02:59]}  Be7 {[%clk 0:02:54]} 7. Re1 {[%clk 0:02:58]}  O-O {[%clk 0:02:52]} 8. e4 {[%clk 0:02:57]}  dxe4 {[%clk 0:02:52]} 9. Nxe4 {[%clk 0:02:58]}  Nxe4 {[%clk 0:02:51]} 10. Rxe4 {[%clk 0:02:59]}  Nf6 {[%clk 0:02:51]} 11. Re1 {[%clk 0:02:58]}  c5 {[%clk 0:02:51]} 12. Be3 {[%clk 0:02:57]}  Nd5 {[%clk 0:02:45]} 13. dxc5 {[%clk 0:02:50]}  Nxe3 {[%clk 0:02:44]} 14. Rxe3 {[%clk 0:02:51]}  Bxc5 {[%clk 0:02:42]} 15. Rb3 {[%clk 0:02:50]}  Bb6 {[%clk 0:02:38]} 16. h3 {[%clk 0:02:36]}  Bf5 {[%clk 0:02:34]} 17. c3 {[%clk 0:02:04]}  Qc7 {[%clk 0:02:27]} 18. Qe2 {[%clk 0:01:29]}  Rad8 {[%clk 0:02:18]} 19. Ne5 {[%clk 0:01:16]}  f6 {[%clk 0:02:17]} 20. Nc4 {[%clk 0:01:14]}  e5 {[%clk 0:01:39]} 21. Nxb6 {[%clk 0:01:11]}  axb6 {[%clk 0:01:40]} 22. Qe3 {[%clk 0:01:12]}  Rd6 {[%clk 0:01:38]} 23. a4 {[%clk 0:01:10]}  Ra8 {[%clk 0:01:24]} 24. a5 {[%clk 0:01:09]}  Be6 {[%clk 0:01:12]} 25. Rb4 {[%clk 0:01:06]}  Qd8 {[%clk 0:00:52]} 26. Ra3 {[%clk 0:00:59]}  Rxa5 {[%clk 0:00:48]} 27. Rxa5 {[%clk 0:00:59]}  bxa5 {[%clk 0:00:49]} 28. Rxb7 {[%clk 0:01:00]}  Bd5 {[%clk 0:00:45]} 29. Bxd5+ {[%clk 0:00:57]}  Rxd5 {[%clk 0:00:45]} 30. Qa7 {[%clk 0:00:58]}  Rd1+ {[%clk 0:00:39]} 31. Kh2 {[%clk 0:00:58]}  Qf8 {[%clk 0:00:37]} 32. c4 {[%clk 0:00:27]}  h5 {[%clk 0:00:31]} 33. h4 {[%clk 0:00:25]}  Kh8 {[%clk 0:00:26]} 34. Rf7 {[%clk 0:00:21]}  Qg8 {[%clk 0:00:14]} 35. c5 {[%clk 0:00:19]}  Rc1 {[%clk 0:00:14]} 36. Qe7 {[%clk 0:00:17]}  Kh7 {[%clk 0:00:09]} 37. Qxf6 {[%clk 0:00:18]}  Rxc5 {[%clk 0:00:08]} 38. Qf5+ {[%clk 0:00:18]}  Kh6 {[%clk 0:00:06]} 39. Qg5+ {[%clk 0:00:19]}  Kh7 {[%clk 0:00:05]} 40. Qxh5# {[%clk 0:00:20]} 1-0


[Site "https://www.chess.com"]

[Event "Titled Tuesday Blitz June 13 Early 2023"]
[White "Souleidis, Georgios"]
[Black "Elsa167"]
[WhiteFideId "4206827"]
[WhiteElo "2401"]
[BlackElo "2904"]
[Result "0-1"]
[Round "3"]
[TimeControl "180+2"]
[Date "2023.06.13"]
[WhiteClock "0:00:05"]
[BlackClock "0:00:43"]
[Board "29"]

1. e4 {[%clk 0:02:58]}  e6 {[%clk 0:03:00]} 2. d4 {[%clk 0:02:58]}  d5 {[%clk 0:03:00]} 3. Nc3 {[%clk 0:02:58]}  Bb4 {[%clk 0:03:00]} 4. Ne2 {[%clk 0:02:58]}  dxe4 {[%clk 0:03:00]} 5. a3 {[%clk 0:02:59]}  Bxc3+ {[%clk 0:03:00]} 6. Nxc3 {[%clk 0:02:59]}  Nc6 {[%clk 0:03:01]} 7. d5 {[%clk 0:02:59]}  exd5 {[%clk 0:03:02]} 8. Qxd5 {[%clk 0:03:00]}  Nge7 {[%clk 0:03:02]} 9. Qxe4 {[%clk 0:03:00]}  Bf5 {[%clk 0:03:03]} 10. Qa4 {[%clk 0:03:00]}  O-O {[%clk 0:03:01]} 11. Be3 {[%clk 0:02:54]}  Nd5 {[%clk 0:02:42]} 12. Nxd5 {[%clk 0:02:52]}  Qxd5 {[%clk 0:02:43]} 13. Rd1 {[%clk 0:02:32]}  Qe6 {[%clk 0:02:10]} 14. Be2 {[%clk 0:02:11]}  Qg6 {[%clk 0:02:08]} 15. Qf4 {[%clk 0:01:27]}  Bxc2 {[%clk 0:01:54]} 16. Rd2 {[%clk 0:01:26]}  Qxg2 {[%clk 0:01:42]} 17. Bf3 {[%clk 0:01:17]}  Qg6 {[%clk 0:01:43]} 18. Qxc7 {[%clk 0:01:10]}  Be4 {[%clk 0:01:36]} 19. Qf4 {[%clk 0:00:31]}  Bxf3 {[%clk 0:01:36]} 20. Qxf3 {[%clk 0:00:31]}  Rad8 {[%clk 0:01:27]} 21. Qd1 {[%clk 0:00:09]}  Rxd2 {[%clk 0:01:23]} 22. Qxd2 {[%clk 0:00:09]}  Rd8 {[%clk 0:01:24]} 23. Qc1 {[%clk 0:00:09]}  Ne5 {[%clk 0:01:08]} 24. Kf1 {[%clk 0:00:09]}  Qd3+ {[%clk 0:01:03]} 25. Kg2 {[%clk 0:00:09]}  Qe4+ {[%clk 0:01:04]} 26. Kg1 {[%clk 0:00:07]}  Nf3+ {[%clk 0:01:04]} 27. Kf1 {[%clk 0:00:06]}  Nd2+ {[%clk 0:00:43]} 28. Ke2 {[%clk 0:00:05]}  Qf3+ {[%clk 0:00:43]} 0-1


[Site "https://www.chess.com"]

[Event "Titled Tuesday Blitz June 13 Early 2023"]
[White "Radzhabov, Rodion"]
[Black "Terry, Renato"]
[WhiteFideId "884715"]
[BlackFideId "3803457"]
[WhiteElo "2174"]
[BlackElo "2575"]
[Result "0-1"]
[Round "3"]
[TimeControl "180+2"]
[Date "2023.06.13"]
[WhiteClock "0:00:00"]
[BlackClock "0:01:34"]
[Board "30"]

1. e4 {[%clk 0:03:00]}  e6 {[%clk 0:03:00]} 2. Nc3 {[%clk 0:03:00]}  d5 {[%clk 0:03:00]} 3. Qe2 {[%clk 0:02:59]}  d4 {[%clk 0:02:59]} 4. Nd1 {[%clk 0:02:59]}  e5 {[%clk 0:02:57]} 5. g3 {[%clk 0:02:58]}  h5 {[%clk 0:02:56]} 6. f4 {[%clk 0:02:57]}  h4 {[%clk 0:02:55]} 7. Qg2 {[%clk 0:02:56]}  Nc6 {[%clk 0:02:40]} 8. Nf3 {[%clk 0:02:46]}  Nf6 {[%clk 0:02:10]} 9. fxe5 {[%clk 0:02:31]}  Nxe4 {[%clk 0:02:05]} 10. Nxh4 {[%clk 0:02:17]}  Nc5 {[%clk 0:01:55]} 11. Bb5 {[%clk 0:02:07]}  Rxh4 {[%clk 0:01:50]} 12. gxh4 {[%clk 0:02:04]}  Qxh4+ {[%clk 0:01:50]} 13. Nf2 {[%clk 0:01:48]}  Bd7 {[%clk 0:01:50]} 14. d3 {[%clk 0:01:20]}  a6 {[%clk 0:01:49]} 15. Bc4 {[%clk 0:00:56]}  Nxe5 {[%clk 0:01:49]} 16. Bd5 {[%clk 0:00:47]}  c6 {[%clk 0:01:39]} 17. Bf3 {[%clk 0:00:18]}  O-O-O {[%clk 0:01:36]} 18. O-O {[%clk 0:00:10]}  Bd6 {[%clk 0:01:36]} 19. Be4 {[%clk 0:00:08]}  Rh8 {[%clk 0:01:33]} 20. Bg5 {[%clk 0:00:07]}  Qh5 {[%clk 0:01:34]} 21. h3 {[%clk 0:00:02]}  f5 {[%clk 0:01:34]} 22. Bf3 {[%clk 0:00:01]}  Nxf3+ {[%clk 0:01:34]} 23. Kh1 {[%clk 0:00:00]}  Nxg5 {[%clk 0:01:34]} 0-1


[Site "https://www.chess.com"]

[Event "Titled Tuesday Blitz June 13 Early 2023"]
[White "Ahmadzada, Ahmad"]
[Black "Alex_Sahakyan2006"]
[WhiteFideId "13413007"]
[WhiteElo "2388"]
[BlackElo "2674"]
[Result "1-0"]
[Round "3"]
[TimeControl "180+2"]
[Date "2023.06.13"]
[WhiteClock "0:00:30"]
[BlackClock "0:00:00"]
[Board "31"]

1. Nf3 {[%clk 0:03:00]}  g6 {[%clk 0:02:58]} 2. e4 {[%clk 0:03:00]}  Bg7 {[%clk 0:02:58]} 3. d4 {[%clk 0:03:00]}  d6 {[%clk 0:02:58]} 4. Nc3 {[%clk 0:03:00]}  a6 {[%clk 0:02:57]} 5. a4 {[%clk 0:02:58]}  Nc6 {[%clk 0:02:57]} 6. h3 {[%clk 0:02:55]}  Nf6 {[%clk 0:02:56]} 7. Be3 {[%clk 0:02:53]}  O-O {[%clk 0:02:55]} 8. Be2 {[%clk 0:02:47]}  Nb4 {[%clk 0:02:55]} 9. O-O {[%clk 0:02:45]}  a5 {[%clk 0:02:53]} 10. Nd2 {[%clk 0:02:44]}  e5 {[%clk 0:02:51]} 11. dxe5 {[%clk 0:02:24]}  dxe5 {[%clk 0:02:52]} 12. Bc4 {[%clk 0:02:22]}  Qe7 {[%clk 0:02:49]} 13. Nb3 {[%clk 0:02:18]}  Rd8 {[%clk 0:02:44]} 14. Qe2 {[%clk 0:02:18]}  b6 {[%clk 0:02:43]} 15. Bg5 {[%clk 0:02:09]}  Be6 {[%clk 0:02:41]} 16. Bxe6 {[%clk 0:01:59]}  Qxe6 {[%clk 0:02:42]} 17. Nb5 {[%clk 0:01:57]}  Qc6 {[%clk 0:02:33]} 18. Bxf6 {[%clk 0:01:54]}  Bxf6 {[%clk 0:02:31]} 19. c3 {[%clk 0:01:50]}  Nd3 {[%clk 0:02:31]} 20. Rfd1 {[%clk 0:01:46]}  Nf4 {[%clk 0:02:30]} 21. Qc2 {[%clk 0:01:42]}  Bg5 {[%clk 0:02:17]} 22. Kh2 {[%clk 0:01:31]}  h5 {[%clk 0:02:13]} 23. g3 {[%clk 0:01:30]}  Ne6 {[%clk 0:02:02]} 24. h4 {[%clk 0:01:30]}  Bh6 {[%clk 0:02:02]} 25. Qe2 {[%clk 0:01:27]}  Kg7 {[%clk 0:01:39]} 26. Kg1 {[%clk 0:01:12]}  Kf8 {[%clk 0:01:06]} 27. c4 {[%clk 0:01:07]}  Nc5 {[%clk 0:00:36]} 28. Nxc5 {[%clk 0:01:04]}  Qxc5 {[%clk 0:00:37]} 29. Rd5 {[%clk 0:01:04]}  Qe7 {[%clk 0:00:37]} 30. c5 {[%clk 0:00:41]}  c6 {[%clk 0:00:19]} 31. Rxd8+ {[%clk 0:00:40]}  Rxd8 {[%clk 0:00:20]} 32. Nd6 {[%clk 0:00:40]}  bxc5 {[%clk 0:00:20]} 33. Nc4 {[%clk 0:00:40]}  Rd4 {[%clk 0:00:15]} 34. Nxa5 {[%clk 0:00:37]}  Qe6 {[%clk 0:00:11]} 35. b3 {[%clk 0:00:32]}  Rd2 {[%clk 0:00:09]} 36. Qf3 {[%clk 0:00:31]}  Rb2 {[%clk 0:00:06]} 37. Nc4 {[%clk 0:00:29]}  Rc2 {[%clk 0:00:00]} 38. a5 {[%clk 0:00:30]} 1-0


[Site "https://www.chess.com"]

[Event "Titled Tuesday Blitz June 13 Early 2023"]
[White "Orlov, Georgi"]
[Black "Gorovets, Andrey"]
[WhiteFideId "2011271"]
[BlackFideId "13504037"]
[WhiteElo "2642"]
[BlackElo "2459"]
[Result "1/2-1/2"]
[Round "3"]
[TimeControl "180+2"]
[Date "2023.06.13"]
[WhiteClock "0:00:05"]
[BlackClock "0:00:03"]
[Board "34"]

1. d4 {[%clk 0:02:54]}  Nf6 {[%clk 0:02:59]} 2. Nf3 {[%clk 0:02:53]}  b6 {[%clk 0:02:59]} 3. c4 {[%clk 0:02:53]}  e6 {[%clk 0:02:58]} 4. g3 {[%clk 0:02:52]}  Bb7 {[%clk 0:02:57]} 5. Bg2 {[%clk 0:02:51]}  g6 {[%clk 0:02:58]} 6. O-O {[%clk 0:02:49]}  Bg7 {[%clk 0:02:59]} 7. Nc3 {[%clk 0:02:49]}  Ne4 {[%clk 0:02:58]} 8. Nxe4 {[%clk 0:02:48]}  Bxe4 {[%clk 0:02:59]} 9. Bg5 {[%clk 0:02:48]}  Qc8 {[%clk 0:02:55]} 10. Qd2 {[%clk 0:02:44]}  h6 {[%clk 0:02:55]} 11. Be3 {[%clk 0:02:40]}  d6 {[%clk 0:02:49]} 12. d5 {[%clk 0:02:34]}  e5 {[%clk 0:02:41]} 13. b4 {[%clk 0:02:26]}  Qb7 {[%clk 0:02:32]} 14. Rfd1 {[%clk 0:02:24]}  a5 {[%clk 0:02:28]} 15. c5 {[%clk 0:02:18]}  g5 {[%clk 0:01:47]} 16. cxd6 {[%clk 0:02:15]}  cxd6 {[%clk 0:01:48]} 17. h4 {[%clk 0:02:02]}  g4 {[%clk 0:01:43]} 18. Ne1 {[%clk 0:01:54]}  Bxg2 {[%clk 0:01:41]} 19. Nxg2 {[%clk 0:01:54]}  Nd7 {[%clk 0:01:25]} 20. Rab1 {[%clk 0:01:47]}  axb4 {[%clk 0:01:18]} 21. Qxb4 {[%clk 0:01:44]}  Ke7 {[%clk 0:01:17]} 22. Qxg4 {[%clk 0:01:42]}  Bf6 {[%clk 0:01:14]} 23. Bc1 {[%clk 0:01:31]}  Rxa2 {[%clk 0:01:00]} 24. Ne3 {[%clk 0:01:30]}  h5 {[%clk 0:00:53]} 25. Nf5+ {[%clk 0:01:27]}  Kd8 {[%clk 0:00:53]} 26. Qc4 {[%clk 0:01:20]}  Qa6 {[%clk 0:00:53]} 27. Qxa6 {[%clk 0:01:16]}  Rxa6 {[%clk 0:00:54]} 28. Nxd6 {[%clk 0:01:17]}  Rh7 {[%clk 0:00:47]} 29. Be3 {[%clk 0:01:14]}  Be7 {[%clk 0:00:44]} 30. Nc4 {[%clk 0:01:08]}  Bc5 {[%clk 0:00:39]} 31. Bxc5 {[%clk 0:01:04]}  Nxc5 {[%clk 0:00:40]} 32. Nxe5 {[%clk 0:00:55]}  Ra2 {[%clk 0:00:36]} 33. Kf1 {[%clk 0:00:48]}  f6 {[%clk 0:00:32]} 34. Nc4 {[%clk 0:00:47]}  Re7 {[%clk 0:00:33]} 35. Rd2 {[%clk 0:00:29]}  Rxd2 {[%clk 0:00:30]} 36. Nxd2 {[%clk 0:00:28]}  Rb7 {[%clk 0:00:25]} 37. Nc4 {[%clk 0:00:26]}  Kc7 {[%clk 0:00:22]} 38. Rb5 {[%clk 0:00:24]}  Nd7 {[%clk 0:00:18]} 39. e4 {[%clk 0:00:22]}  Ra7 {[%clk 0:00:18]} 40. d6+ {[%clk 0:00:20]}  Kc6 {[%clk 0:00:18]} 41. Rxh5 {[%clk 0:00:20]}  b5 {[%clk 0:00:16]} 42. Ne3 {[%clk 0:00:17]}  Nc5 {[%clk 0:00:14]} 43. Nd5 {[%clk 0:00:16]}  Nxe4 {[%clk 0:00:14]} 44. Nb4+ {[%clk 0:00:15]}  Kxd6 {[%clk 0:00:13]} 45. Rxb5 {[%clk 0:00:14]}  Ke6 {[%clk 0:00:11]} 46. Nd3 {[%clk 0:00:13]}  Ra3 {[%clk 0:00:09]} 47. Nf4+ {[%clk 0:00:13]}  Kf7 {[%clk 0:00:08]} 48. Rb7+ {[%clk 0:00:13]}  Ke8 {[%clk 0:00:09]} 49. Rb4 {[%clk 0:00:11]}  f5 {[%clk 0:00:08]} 50. Rb5 {[%clk 0:00:11]}  Ra2 {[%clk 0:00:09]} 51. Nd3 {[%clk 0:00:11]}  Rd2 {[%clk 0:00:09]} 52. Re5+ {[%clk 0:00:11]}  Kd8 {[%clk 0:00:08]} 53. Rd5+ {[%clk 0:00:11]}  Ke7 {[%clk 0:00:08]} 54. h5 {[%clk 0:00:11]}  Nxf2 {[%clk 0:00:06]} 55. Nf4 {[%clk 0:00:08]}  Ne4 {[%clk 0:00:03]} 56. h6 {[%clk 0:00:06]}  Rh2 {[%clk 0:00:02]} 57. Rxf5 {[%clk 0:00:05]}  Nxg3+ {[%clk 0:00:02]} 58. Kg1 {[%clk 0:00:06]}  Nxf5 {[%clk 0:00:02]} 59. Kxh2 {[%clk 0:00:05]}  Nxh6 {[%clk 0:00:03]} 1/2-1/2


[Site "https://www.chess.com"]

[Event "Titled Tuesday Blitz June 13 Early 2023"]
[White "Sourath Biswas"]
[Black "Harsha Bharathakoti"]
[WhiteFideId "35091484"]
[BlackFideId "5078776"]
[WhiteElo "2171"]
[BlackElo "2504"]
[Result "0-1"]
[Round "3"]
[TimeControl "180+2"]
[Date "2023.06.13"]
[WhiteClock "0:00:04"]
[BlackClock "0:00:30"]
[Board "35"]

1. Nf3 {[%clk 0:03:00]}  g6 {[%clk 0:02:57]} 2. d4 {[%clk 0:02:58]}  Bg7 {[%clk 0:02:57]} 3. g3 {[%clk 0:02:58]}  c5 {[%clk 0:02:46]} 4. c3 {[%clk 0:02:54]}  b6 {[%clk 0:02:43]} 5. Bg2 {[%clk 0:02:54]}  Bb7 {[%clk 0:02:44]} 6. O-O {[%clk 0:02:55]}  Nf6 {[%clk 0:02:45]} 7. b3 {[%clk 0:02:51]}  O-O {[%clk 0:02:44]} 8. Bb2 {[%clk 0:02:52]}  d6 {[%clk 0:02:42]} 9. c4 {[%clk 0:02:49]}  cxd4 {[%clk 0:02:41]} 10. Bxd4 {[%clk 0:02:45]}  Nbd7 {[%clk 0:02:40]} 11. Bb2 {[%clk 0:02:39]}  Rc8 {[%clk 0:02:38]} 12. Nc3 {[%clk 0:02:31]}  Rc5 {[%clk 0:02:38]} 13. Qd2 {[%clk 0:02:21]}  Qa8 {[%clk 0:02:37]} 14. Rad1 {[%clk 0:02:18]}  a6 {[%clk 0:02:34]} 15. Rfe1 {[%clk 0:01:49]}  Rfc8 {[%clk 0:02:15]} 16. Nh4 {[%clk 0:01:00]}  Bxg2 {[%clk 0:02:05]} 17. Nxg2 {[%clk 0:01:01]}  b5 {[%clk 0:02:05]} 18. Ne3 {[%clk 0:00:24]}  bxc4 {[%clk 0:02:04]} 19. bxc4 {[%clk 0:00:25]}  Nb6 {[%clk 0:01:59]} 20. Ncd5 {[%clk 0:00:25]}  Nfxd5 {[%clk 0:01:40]} 21. Nxd5 {[%clk 0:00:18]}  Nxd5 {[%clk 0:01:40]} 22. Bxg7 {[%clk 0:00:18]}  Rxc4 {[%clk 0:01:19]} 23. Ba1 {[%clk 0:00:15]}  Nc7 {[%clk 0:00:59]} 24. Qg5 {[%clk 0:00:15]}  Re8 {[%clk 0:00:53]} 25. Rc1 {[%clk 0:00:09]}  Ne6 {[%clk 0:00:53]} 26. Qh6 {[%clk 0:00:07]}  Rec8 {[%clk 0:00:50]} 27. Rxc4 {[%clk 0:00:07]}  Rxc4 {[%clk 0:00:51]} 28. h3 {[%clk 0:00:07]}  Qe4 {[%clk 0:00:47]} 29. e3 {[%clk 0:00:05]}  f6 {[%clk 0:00:47]} 30. Rd1 {[%clk 0:00:04]}  Qf3 {[%clk 0:00:44]} 31. Rf1 {[%clk 0:00:03]}  Rc2 {[%clk 0:00:42]} 32. e4 {[%clk 0:00:03]}  Qxe4 {[%clk 0:00:37]} 33. Rc1 {[%clk 0:00:03]}  Rxc1+ {[%clk 0:00:37]} 34. Qxc1 {[%clk 0:00:04]}  Kf7 {[%clk 0:00:37]} 35. Bc3 {[%clk 0:00:04]}  Qc4 {[%clk 0:00:36]} 36. Qa3 {[%clk 0:00:04]}  d5 {[%clk 0:00:36]} 37. Bd2 {[%clk 0:00:04]}  d4 {[%clk 0:00:35]} 38. Qa5 {[%clk 0:00:04]}  d3 {[%clk 0:00:35]} 39. Kh2 {[%clk 0:00:04]}  Nd4 {[%clk 0:00:35]} 40. Be3 {[%clk 0:00:04]}  Nf3+ {[%clk 0:00:33]} 41. Kg2 {[%clk 0:00:05]}  Qc6 {[%clk 0:00:34]} 42. Kf1 {[%clk 0:00:05]}  Ne5 {[%clk 0:00:30]} 43. Bd4 {[%clk 0:00:04]}  Qh1# {[%clk 0:00:30]} 0-1


[Site "https://www.chess.com"]

[Event "Titled Tuesday Blitz June 13 Early 2023"]
[White "Bacrot, Etienne"]
[Black "Domingo Nunez, Alejandro"]
[WhiteFideId "605506"]
[BlackFideId "22245561"]
[WhiteElo "2672"]
[BlackElo "2291"]
[Result "1-0"]
[Round "3"]
[TimeControl "180+2"]
[Date "2023.06.13"]
[WhiteClock "0:00:30"]
[BlackClock "0:00:06"]
[Board "36"]

1. e4 {[%clk 0:03:00]}  g6 {[%clk 0:02:59]} 2. Nf3 {[%clk 0:03:00]}  Bg7 {[%clk 0:03:00]} 3. d4 {[%clk 0:03:00]}  c6 {[%clk 0:03:01]} 4. Bd3 {[%clk 0:03:00]}  d5 {[%clk 0:03:01]} 5. Nbd2 {[%clk 0:02:58]}  dxe4 {[%clk 0:03:01]} 6. Nxe4 {[%clk 0:02:59]}  Nf6 {[%clk 0:03:02]} 7. h3 {[%clk 0:02:58]}  O-O {[%clk 0:03:01]} 8. O-O {[%clk 0:02:57]}  Nxe4 {[%clk 0:02:56]} 9. Bxe4 {[%clk 0:02:58]}  Qc7 {[%clk 0:02:53]} 10. c3 {[%clk 0:02:56]}  Nd7 {[%clk 0:02:53]} 11. Re1 {[%clk 0:02:56]}  e5 {[%clk 0:02:48]} 12. dxe5 {[%clk 0:02:52]}  Nxe5 {[%clk 0:02:48]} 13. Bf4 {[%clk 0:02:51]}  Nxf3+ {[%clk 0:02:39]} 14. Qxf3 {[%clk 0:02:51]}  Qb6 {[%clk 0:02:38]} 15. Bd6 {[%clk 0:02:50]}  Rd8 {[%clk 0:02:22]} 16. Ba3 {[%clk 0:02:19]}  Be6 {[%clk 0:02:19]} 17. h4 {[%clk 0:02:15]}  Bd5 {[%clk 0:01:50]} 18. h5 {[%clk 0:02:06]}  Qb5 {[%clk 0:01:17]} 19. hxg6 {[%clk 0:01:51]}  hxg6 {[%clk 0:01:18]} 20. Qf4 {[%clk 0:01:38]}  Bxe4 {[%clk 0:01:12]} 21. Rxe4 {[%clk 0:01:38]}  c5 {[%clk 0:00:55]} 22. Re7 {[%clk 0:01:32]}  Rf8 {[%clk 0:00:55]} 23. Rd1 {[%clk 0:01:29]}  Rae8 {[%clk 0:00:50]} 24. Rdd7 {[%clk 0:01:23]}  Rxe7 {[%clk 0:00:48]} 25. Rxe7 {[%clk 0:01:21]}  a6 {[%clk 0:00:45]} 26. c4 {[%clk 0:01:04]}  Qa5 {[%clk 0:00:45]} 27. g3 {[%clk 0:00:54]}  b6 {[%clk 0:00:26]} 28. Kg2 {[%clk 0:00:51]}  Bd4 {[%clk 0:00:27]} 29. Rd7 {[%clk 0:00:48]}  Bg7 {[%clk 0:00:14]} 30. Qe4 {[%clk 0:00:44]}  Qa4 {[%clk 0:00:09]} 31. Qd5 {[%clk 0:00:35]}  Qc2 {[%clk 0:00:07]} 32. Qd3 {[%clk 0:00:30]}  Qxd3 {[%clk 0:00:06]} 33. Rxd3 {[%clk 0:00:31]}  Bd4 {[%clk 0:00:06]} 34. Rxd4 {[%clk 0:00:30]}  cxd4 {[%clk 0:00:07]} 35. Bxf8 {[%clk 0:00:30]}  Kxf8 {[%clk 0:00:08]} 36. Kf3 {[%clk 0:00:30]}  f5 {[%clk 0:00:09]} 37. Ke2 {[%clk 0:00:29]}  Ke7 {[%clk 0:00:07]} 38. Kd3 {[%clk 0:00:30]}  Ke6 {[%clk 0:00:07]} 39. Kxd4 {[%clk 0:00:30]}  Kd6 {[%clk 0:00:06]} 40. b4 {[%clk 0:00:30]} 1-0


[Site "https://www.chess.com"]

[Event "Titled Tuesday Blitz June 13 Early 2023"]
[White "Zemlyanskii, Ivan"]
[Black "Chernobay, Artem"]
[WhiteFideId "24249971"]
[BlackFideId "4167406"]
[WhiteElo "2421"]
[BlackElo "2474"]
[Result "0-1"]
[Round "3"]
[TimeControl "180+2"]
[Date "2023.06.13"]
[WhiteClock "0:00:00"]
[BlackClock "0:00:04"]
[Board "38"]

1. d4 {[%clk 0:03:00]}  Nf6 {[%clk 0:03:00]} 2. c4 {[%clk 0:02:59]}  g6 {[%clk 0:03:00]} 3. h4 {[%clk 0:03:00]}  Bg7 {[%clk 0:02:58]} 4. Nc3 {[%clk 0:03:00]}  d6 {[%clk 0:02:57]} 5. e4 {[%clk 0:03:00]}  O-O {[%clk 0:02:56]} 6. Be2 {[%clk 0:03:00]}  c5 {[%clk 0:02:53]} 7. d5 {[%clk 0:02:58]}  e6 {[%clk 0:02:53]} 8. h5 {[%clk 0:02:59]}  exd5 {[%clk 0:02:45]} 9. exd5 {[%clk 0:03:00]}  a6 {[%clk 0:02:34]} 10. h6 {[%clk 0:02:56]}  Bh8 {[%clk 0:02:34]} 11. a4 {[%clk 0:02:57]}  Re8 {[%clk 0:02:25]} 12. Bg5 {[%clk 0:02:43]}  Qb6 {[%clk 0:02:15]} 13. b3 {[%clk 0:02:33]}  Bg4 {[%clk 0:01:32]} 14. Kf1 {[%clk 0:01:44]}  Bf5 {[%clk 0:01:18]} 15. Rc1 {[%clk 0:01:28]}  Qc7 {[%clk 0:00:59]} 16. g3 {[%clk 0:01:22]}  Ne4 {[%clk 0:00:51]} 17. Nxe4 {[%clk 0:01:20]}  Bxe4 {[%clk 0:00:52]} 18. Rh4 {[%clk 0:01:14]}  Bf5 {[%clk 0:00:51]} 19. Bd3 {[%clk 0:01:10]}  Bxd3+ {[%clk 0:00:32]} 20. Qxd3 {[%clk 0:01:11]}  Nd7 {[%clk 0:00:33]} 21. Re4 {[%clk 0:00:48]}  Ne5 {[%clk 0:00:28]} 22. Qe2 {[%clk 0:00:47]}  Qd7 {[%clk 0:00:11]} 23. Re1 {[%clk 0:00:46]}  Kf8 {[%clk 0:00:10]} 24. Kg2 {[%clk 0:00:36]}  b5 {[%clk 0:00:07]} 25. cxb5 {[%clk 0:00:23]}  axb5 {[%clk 0:00:08]} 26. axb5 {[%clk 0:00:24]}  Rab8 {[%clk 0:00:07]} 27. b6 {[%clk 0:00:23]}  f6 {[%clk 0:00:06]} 28. Bd2 {[%clk 0:00:19]}  f5 {[%clk 0:00:04]} 29. Re3 {[%clk 0:00:18]}  Qf7 {[%clk 0:00:04]} 30. f4 {[%clk 0:00:13]}  Qxd5+ {[%clk 0:00:04]} 31. Kh3 {[%clk 0:00:11]}  Qh1+ {[%clk 0:00:04]} 32. Qh2 {[%clk 0:00:09]}  Qxh2+ {[%clk 0:00:04]} 33. Kxh2 {[%clk 0:00:10]}  Ng4+ {[%clk 0:00:04]} 34. Kg2 {[%clk 0:00:10]}  Nxe3+ {[%clk 0:00:04]} 35. Bxe3 {[%clk 0:00:08]}  Rxb6 {[%clk 0:00:04]} 36. Nf3 {[%clk 0:00:09]}  Rxb3 {[%clk 0:00:04]} 37. Kf2 {[%clk 0:00:10]}  Rb2+ {[%clk 0:00:03]} 38. Kf1 {[%clk 0:00:09]}  Bc3 {[%clk 0:00:04]} 39. Ng5 {[%clk 0:00:05]}  Bxe1 {[%clk 0:00:03]} 40. Nxh7+ {[%clk 0:00:06]}  Ke7 {[%clk 0:00:02]} 41. Bc1 {[%clk 0:00:06]}  Rb1 {[%clk 0:00:02]} 42. Ba3 {[%clk 0:00:02]}  Bxg3+ {[%clk 0:00:02]} 43. Kg2 {[%clk 0:00:03]}  Bxf4 {[%clk 0:00:03]} 44. Ng5 {[%clk 0:00:01]}  Bxg5 {[%clk 0:00:03]} 45. h7 {[%clk 0:00:02]}  Bf6 {[%clk 0:00:04]} 46. Bxc5 {[%clk 0:00:03]}  dxc5 {[%clk 0:00:04]} 47. h8=Q {[%clk 0:00:00]}  Rxh8 {[%clk 0:00:04]} 0-1


[Site "https://www.chess.com"]